bitfinex/quotes_SOLUSD_20240726
["timestamp","ask_amount","ask_price","bid_price","bid_amount"]
[1721953316512,0.82015,173.52,173.44,66.15263698]
[1721953316712,0.82015,173.52,173.44,65.0]
[1721953316918,5.7633,173.51,173.44,45.0]
[1721953317111,0.82015,173.52,173.43,15.4507]
[1721953317112,5.7637,173.5,173.43,15.4507]
[1721953319027,0.82015,173.52,173.41,6.4729]
[1721953319212,15.89905,173.52,173.41,6.4729]
[1721953319402,65.0,173.51,173.41,6.4729]
[1721953319602,5.7653,173.45,173.41,6.4729]
[1721953319825,45.0,173.51,173.41,6.4729]
[1721953320018,14.4119,173.47,173.3,22.4337]
[1721953320216,5.7657,173.44,173.31,1.15345063]
[1721953320524,20.0,173.46,173.32,6.0333]
[1721953320702,20.0,173.46,173.33,1.15329654]
[1721953320899,5.7672,173.4,173.32,6.0333]
[1721953321104,14.4139,173.45,173.32,6.0333]
[1721953321312,445.5,173.51,173.32,6.0333]
[1721953321313,5.7663,173.42,173.32,6.0333]
[1721953321729,20.0,173.44,173.33,1.15349859]
[1721953322023,439.9085,173.51,173.34,6.1987]
[1721953322024,425.5,173.51,173.34,6.1987]
[1721953322262,20.0,173.5,173.35,21.15320009]
[1721953322404,20.0,173.51,173.36,1.15319777]
[1721953322932,14.4098,173.5,173.36,45.0]
[1721953323109,20.0,173.49,173.35,45.0]
[1721953323305,40.0,173.51,173.35,45.0]
[1721953323523,45.0,173.5,173.35,45.0]
[1721953323723,20.0,173.49,173.35,45.0]
[1721953323931,5.7664,173.42,173.35,45.0]
[1721953324227,14.4119,173.47,173.35,45.0]
[1721953324432,5.7664,173.42,173.35,45.0]
[1721953324814,5.7656,173.45,173.35,45.0]
[1721953325020,14.4119,173.47,173.35,45.0]
[1721953325021,20.0,173.44,173.35,45.0]
[1721953325208,5.7664,173.42,173.35,45.0]
[1721953325453,5.7664,173.42,173.34,6.1987]
[1721953326032,5.7669,173.41,173.34,6.1987]
[1721953326217,20.0,173.44,173.34,6.1987]
[1721953326417,5.7662,173.43,173.34,6.1987]
[1721953326810,20.0,173.42,173.34,6.1987]
[1721953327130,25.7663,173.42,173.34,6.1987]
[1721953327328,5.767,173.4,173.34,6.1987]
[1721953327531,20.0,173.42,173.34,6.1987]
[1721953327714,20.0,173.46,173.34,6.1987]
[1721953327914,5.7663,173.42,173.34,6.1987]
[1721953328132,5.7659,173.44,173.34,7.352238]
[1721953328319,25.766,173.43,173.35,45.0]
[1721953328717,5.7666,173.41,173.34,6.1987]
[1721953329014,20.0,173.43,173.34,6.1987]
[1721953329202,20.0,173.43,173.35,45.0]
[1721953329518,394.909,173.51,173.35,45.0]
[1721953329722,5.7648,173.47,173.36,1.15319791]
[1721953329926,394.909,173.51,173.35,45.0]
[1721953330128,14.4106,173.49,173.35,45.0]
[1721953330452,14.4125,173.46,173.34,6.1987]
[1721953330743,5.766,173.43,173.34,6.1987]
[1721953330933,5.7663,173.42,173.34,6.1987]
[1721953331608,5.766,173.43,173.34,6.1987]
[1721953331808,5.766,173.43,173.35,45.0]
[1721953332010,20.0,173.45,173.35,45.0]
[1721953332210,20.0,173.48,173.35,45.0]
[1721953333108,5.7654,173.45,173.35,45.0]
[1721953333310,5.7646,173.47,173.37,15.358]
[1721953333611,5.7647,173.47,173.39,6.037]
[1721953333811,380.5,173.51,173.39,6.037]
[1721953333812,5.7639,173.5,173.4,46.15310436]
[1721953334012,380.5,173.51,173.4,46.15310436]
[1721953334207,5.7637,173.5,173.4,46.15310436]
[1721953334411,380.5,173.51,173.42,6.2692]
[1721953334609,380.5,173.51,173.44,15.3373]
[1721953334836,380.5,173.51,173.45,46.15268177]
[1721953335025,380.5,173.51,173.46,1.15268171]
[1721953335231,0.82015,173.52,173.45,45.0]
[1721953335444,5.7645,173.48,173.44,15.3373]
[1721953335645,5.7639,173.5,173.44,15.3373]
[1721953335819,5.7641,173.49,173.44,15.3373]
[1721953336135,0.82015,173.52,173.44,15.3373]
[1721953336339,5.7636,173.51,173.44,15.3373]
[1721953336638,20.0,173.5,173.44,15.3373]
[1721953337528,0.82015,173.52,173.45,45.0]
[1721953338149,0.82015,173.52,173.46,7.24966692]
[1721953338327,0.82015,173.52,173.47,45.0]
[1721953338526,0.82015,173.52,173.48,1.15241619]
[1721953339244,0.82015,173.52,173.49,1.15241525]
[1721953339415,0.82015,173.52,173.48,1.15241525]
[1721953339607,0.82015,173.52,173.47,46.15240336]
[1721953339814,0.82015,173.52,173.47,45.0]
[1721953340216,0.82015,173.52,173.48,1.15254996]
[1721953340527,0.82015,173.52,173.47,45.0]
[1721953340950,0.82015,173.52,173.46,6.097]
[1721953341178,14.4099,173.5,173.41,6.5717]
[1721953341314,5.7643,173.48,173.41,6.5717]
[1721953341542,0.82015,173.52,173.41,6.5717]
[1721953341750,0.82015,173.52,173.41,7.72454491]
[1721953342048,0.82015,173.52,173.41,6.5717]
[1721953342222,5.7644,173.48,173.41,6.5717]
[1721953342421,5.7652,173.46,173.41,6.5717]
[1721953342943,5.7656,173.45,173.41,6.5717]
[1721953343142,25.7657,173.44,173.41,6.5717]
[1721953343347,5.766,173.43,173.36,6.1332]
[1721953343556,5.7667,173.41,173.36,6.1332]
[1721953343725,5.7672,173.4,173.36,6.1332]
[1721953343931,20.0,173.44,173.36,6.1332]
[1721953344224,29.17,173.47,173.36,6.1332]
[1721953344225,20.0,173.46,173.36,6.1332]
[1721953344431,55.40158015,173.45,173.36,6.1332]
[1721953344667,20.0,173.44,173.36,6.1332]
[1721953345341,25.7657,173.44,173.36,6.1332]
[1721953346385,5.7662,173.43,173.36,6.1332]
[1721953346520,20.0,173.42,173.36,6.1332]
[1721953347221,25.7658,173.44,173.36,6.1332]
[1721953347447,5.7656,173.44,173.36,6.1332]
[1721953347620,20.0,173.43,173.37,45.0]
[1721953348327,5.765,173.46,173.37,45.0]
[1721953348725,10.39855727,173.49,173.37,45.0]
[1721953348921,5.766,173.43,173.37,45.0]
[1721953349126,5.7664,173.42,173.37,45.0]
[1721953349355,35.99074993,173.52,173.36,6.1332]
[1721953349564,5.7667,173.41,173.36,6.1332]
[1721953349854,5.7666,173.42,173.36,6.1332]
[1721953350049,25.7667,173.41,173.36,6.1332]
[1721953350251,5.7673,173.4,173.36,6.1332]
[1721953350574,25.7667,173.41,173.36,6.1332]
[1721953350940,5.7671,173.4,173.36,6.1332]
[1721953351342,20.0,173.39,173.36,6.1332]
[1721953352030,25.7673,173.39,173.36,6.1332]
[1721953353056,20.0,173.39,173.36,6.1332]
[1721953353633,25.7674,173.39,173.36,6.1332]
[1721953353832,20.0,173.39,173.29,6.5011]
[1721953354053,20.0,173.45,173.29,6.5011]
[1721953354354,5.768,173.37,173.29,6.5011]
[1721953354560,20.0,173.36,173.29,6.5011]
[1721953355550,20.0,173.36,173.3,45.0]
[1721953355859,380.5,173.47,173.32,15.3468]
[1721953356060,0.82015,173.52,173.34,6.2749]
[1721953356352,5.7649,173.47,173.35,66.15318757]
[1721953356551,5.7649,173.47,173.36,1.15318757]
[1721953356939,5.7644,173.48,173.36,1.15318757]
[1721953357340,20.0,173.47,173.36,1.15318757]
[1721953357532,0.82015,173.52,173.36,1.15318757]
[1721953357733,5.764,173.49,173.37,6.2749]
[1721953358033,0.82015,173.52,173.38,66.15299292]
[1721953358249,11.21685334,173.52,173.38,66.15299292]
[1721953358655,0.82015,173.52,173.38,66.15299292]
[1721953358860,5.7639,173.5,173.38,66.15299292]
[1721953359056,5.764,173.49,173.38,66.15299292]
[1721953359236,5.7637,173.5,173.38,66.15299292]
[1721953359741,5.764,173.49,173.38,66.15299292]
[1721953360945,5.7637,173.5,173.38,66.15299292]
[1721953361842,5.764,173.49,173.38,66.15299292]
[1721953362144,5.7643,173.49,173.38,66.15299292]
[1721953363265,5.7637,173.5,173.38,66.15299292]
[1721953363765,20.0,173.49,173.37,6.2749]
[1721953363954,5.7649,173.47,173.37,6.2749]
[1721953364144,5.765,173.46,173.37,6.2749]
[1721953364657,5.765,173.47,173.37,6.2749]
[1721953365064,5.7654,173.45,173.37,6.2749]
[1721953366041,20.0,173.49,173.37,6.2749]
[1721953366505,5.7645,173.48,173.37,6.2749]
[1721953366765,20.0,173.47,173.38,45.0]
[1721953366948,5.7653,173.46,173.38,45.0]
[1721953367265,5.7639,173.5,173.39,35.2479]
[1721953367594,5.7639,173.5,173.4,45.0]
[1721953367742,10.3967511,173.51,173.39,15.2479]
[1721953368079,5.7653,173.46,173.39,15.2479]
[1721953368282,5.7647,173.47,173.39,15.2479]
[1721953368641,10.39772721,173.49,173.39,15.2479]
[1721953368866,5.7656,173.45,173.37,6.2749]
[1721953369260,5.7657,173.44,173.37,6.2749]
[1721953369565,5.7652,173.46,173.37,6.2749]
[1721953370055,5.7652,173.46,173.38,45.0]
[1721953370454,5.7658,173.44,173.37,6.2749]
[1721953370856,20.0,173.48,173.37,6.2749]
[1721953371056,20.0,173.48,173.38,45.0]
[1721953371256,20.0,173.49,173.38,45.0]
[1721953372254,43.58,173.5,173.38,45.0]
[1721953372454,5.7644,173.48,173.39,20.0]
[1721953373363,0.82015,173.52,173.4,46.15326687]
[1721953373548,0.82015,173.52,173.41,22.4498]
[1721953373748,0.82015,173.52,173.42,21.15271165]
[1721953373957,0.82015,173.52,173.42,65.0]
[1721953374359,0.82015,173.52,173.42,66.15291998]
[1721953375077,0.82015,173.52,173.42,65.0]
[1721953375254,6.58325,173.52,173.42,65.0]
[1721953375861,0.82015,173.52,173.42,66.15288811]
[1721953376063,0.82015,173.52,173.42,65.0]
[1721953377080,0.82015,173.52,173.43,1.15294135]
[1721953377854,0.82015,173.52,173.42,20.0]
[1721953378175,6.58325,173.52,173.42,20.0]
[1721953378388,0.82015,173.52,173.42,20.0]
[1721953378558,5.7633,173.51,173.42,20.0]
[1721953378758,5.7638,173.5,173.42,20.0]
[1721953378983,5.7633,173.51,173.42,20.0]
[1721953379274,0.82015,173.52,173.42,20.0]
[1721953379577,0.82015,173.52,173.43,45.0]
[1721953379784,0.82015,173.52,173.44,20.0]
[1721953379986,0.82015,173.52,173.45,46.15268813]
[1721953380286,0.82015,173.52,173.47,6.3576]
[1721953380785,6.58315,173.52,173.47,6.3576]
[1721953381152,0.82015,173.52,173.47,6.3576]
[1721953382664,5.7635,173.51,173.47,6.3576]
[1721953382984,0.82015,173.52,173.47,6.3576]
[1721953383768,5.7643,173.48,173.47,6.3576]
[1721953384098,14.4091,173.51,173.42,6.4438]
[1721953384456,5.7643,173.49,173.42,6.4438]
[1721953384986,50.67567594,173.51,173.42,6.4438]
[1721953385159,5.7649,173.47,173.42,6.4438]
[1721953385470,25.87,173.51,173.42,6.4438]
[1721953385661,30.39722705,173.5,173.42,6.4438]
[1721953385867,20.0,173.5,173.42,6.4438]
[1721953386268,25.7639,173.5,173.42,6.4438]
[1721953386541,5.7643,173.49,173.42,6.4438]
[1721953386703,5.7644,173.48,173.42,6.4438]
[1721953386866,25.87,173.48,173.38,6.5124]
[1721953387066,5.7663,173.42,173.38,6.5124]
[1721953387282,5.766,173.43,173.38,6.5124]
[1721953387598,5.7665,173.42,173.38,6.5124]
[1721953388000,5.7666,173.41,173.38,6.5124]
[1721953388293,36.27059333,173.45,173.33,22.7047]
[1721953388507,75.40059333,173.44,173.33,22.7047]
[1721953388675,10.40059333,173.43,173.33,22.7047]
[1721953388881,45.0,173.42,173.33,22.7047]
[1721953389067,5.7671,173.4,173.33,22.7047]
[1721953389768,45.0,173.42,173.33,22.7047]
[1721953389769,5.768,173.37,173.33,22.7047]
[1721953390466,45.0,173.42,173.33,22.7047]
[1721953390687,20.0,173.44,173.33,22.7047]
[1721953390893,10.40183271,173.43,173.33,22.7047]
[1721953391103,380.5,173.47,173.34,1.15348017]
[1721953391278,380.5,173.47,173.34,66.15348017]
[1721953391591,30.60385,173.52,173.34,66.15348017]
[1721953391798,10.39877061,173.51,173.34,66.15348017]
[1721953392099,14.4119,173.47,173.34,65.0]
[1721953392309,10.39877061,173.46,173.35,45.0]
[1721953392792,30.40009395,173.45,173.35,45.0]
[1721953392970,5.7661,173.43,173.35,45.0]
[1721953393170,5.7661,173.43,173.34,20.0]
[1721953393171,24.81511677,173.44,173.33,22.7047]
[1721953393480,5.7669,173.41,173.33,22.7047]
[1721953393795,20.0,173.48,173.34,21.1534063]
[1721953393796,5.7646,173.48,173.34,21.1534063]
[1721953394172,5.7647,173.47,173.34,21.1534063]
[1721953394372,10.39792752,173.5,173.34,20.0]
[1721953394595,14.4107,173.49,173.34,20.0]
[1721953394774,5.766,173.43,173.34,20.0]
[1721953395991,5.7657,173.44,173.34,20.0]
[1721953396475,10.3994266,173.47,173.34,20.0]
[1721953396793,65.0,173.46,173.34,20.0]
[1721953396970,5.7661,173.43,173.34,20.0]
[1721953397169,65.0,173.46,173.34,20.0]
[1721953397568,5.7657,173.44,173.34,20.0]
[1721953398268,5.7656,173.45,173.34,20.0]
[1721953398693,5.7657,173.44,173.34,20.0]
[1721953399384,29.16,173.49,173.34,21.15348883]
[1721953399699,5.7637,173.5,173.36,6.3398]
[1721953399891,16.16046612,173.5,173.37,66.15312375]
[1721953400092,5.7637,173.5,173.37,66.15312375]
[1721953400277,0.82015,173.52,173.38,16.2576]
[1721953400488,5.7635,173.51,173.4,6.3398]
[1721953400690,5.7635,173.51,173.4,7.49284389]
[1721953400886,5.7635,173.51,173.41,45.0]
[1721953401076,25.7637,173.5,173.41,45.0]
[1721953401402,25.7639,173.5,173.41,45.0]
[1721953401692,5.7644,173.48,173.4,6.3398]
[1721953401873,20.0,173.5,173.41,45.0]
[1721953402071,20.0,173.5,173.4,6.3398]
[1721953402377,0.82015,173.52,173.41,46.15310921]
[1721953402873,0.82015,173.52,173.42,20.0]
[1721953403084,0.82015,173.52,173.43,46.15292088]
[1721953403291,0.82015,173.52,173.44,20.0]
[1721953403699,0.82015,173.52,173.45,1.1529204]
[1721953403908,0.82015,173.52,173.46,7.49255569]
[1721953404099,0.82015,173.52,173.47,16.2576]
[1721953404885,6.58315,173.52,173.47,16.2576]
[1721953405268,5.7642,173.49,173.46,6.3398]
[1721953405600,0.82015,173.52,173.46,6.3398]
[1721953407525,0.82015,173.52,173.42,16.608]
[1721953407526,5.7643,173.49,173.42,16.608]
[1721953407693,10.39575347,173.51,173.42,16.608]
[1721953407871,20.0,173.5,173.42,16.608]
[1721953408598,5.764,173.49,173.42,16.608]
[1721953408901,5.7637,173.5,173.42,16.608]
[1721953409100,20.0,173.49,173.42,16.608]
[1721953409878,5.764,173.49,173.42,16.608]
[1721953410279,10.39678513,173.51,173.43,45.0]
[1721953410486,0.82015,173.52,173.42,16.608]
[1721953411094,0.82015,173.52,173.43,66.15274398]
[1721953411405,6.58315,173.52,173.43,65.0]
[1721953411592,0.82015,173.52,173.43,65.0]
[1721953411773,6.58315,173.52,173.43,65.0]
[1721953412270,0.82015,173.52,173.43,65.0]
[1721953413896,0.82015,173.52,173.43,20.0]
[1721953414104,6.58315,173.52,173.43,20.0]
[1721953414903,5.7639,173.5,173.43,20.0]
[1721953415107,0.82015,173.52,173.43,21.152946]
[1721953415596,0.82015,173.52,173.42,16.608]
[1721953415597,5.7644,173.48,173.42,16.608]
[1721953416004,25.89,173.5,173.41,6.6256]
[1721953416177,5.7653,173.45,173.41,6.6256]
[1721953416578,5.7653,173.45,173.38,15.5948]
[1721953416800,25.89,173.47,173.38,15.5948]
[1721953417002,5.7656,173.45,173.38,15.5948]
[1721953417509,5.7656,173.45,173.33,15.9274]
[1721953417510,25.89,173.44,173.33,15.9274]
[1721953417681,5.7669,173.41,173.33,15.9274]
[1721953417878,20.0,173.43,173.33,15.9274]
[1721953418379,20.0,173.44,173.33,15.9274]
[1721953418795,5.7669,173.41,173.33,15.9274]
[1721953420611,5.7672,173.4,173.33,15.9274]
[1721953420788,5.7665,173.42,173.33,15.9274]
[1721953421504,5.7663,173.42,173.33,15.9274]
[1721953422388,5.7668,173.41,173.33,15.9274]
[1721953423506,20.0,173.44,173.33,15.9274]
[1721953423692,20.0,173.44,173.31,6.4977]
[1721953423693,5.7677,173.38,173.31,6.4977]
[1721953424004,5.7673,173.39,173.31,6.4977]
[1721953424588,50.2672,173.43,173.31,6.4977]
[1721953424793,94.16,173.42,173.31,6.4977]
[1721953424997,5.768,173.37,173.31,6.4977]
[1721953425290,5.7677,173.38,173.31,6.4977]
[1721953425492,5.7683,173.36,173.31,6.4977]
[1721953426114,5.7679,173.38,173.31,6.4977]
[1721953426511,5.768,173.37,173.31,6.4977]
[1721953427114,5.7683,173.36,173.31,6.4977]
[1721953427983,5.768,173.37,173.31,6.4977]
[1721953429110,5.7677,173.38,173.31,6.4977]
[1721953430796,94.16,173.42,173.31,6.4977]
[1721953430993,29.16,173.42,173.31,6.4977]
[1721953431189,5.767,173.4,173.31,6.4977]
[1721953431419,29.16,173.42,173.31,6.4977]
[1721953431712,5.7694,173.33,173.26,6.2079]
[1721953432415,5.7702,173.31,173.26,6.2079]
[1721953432647,5.77,173.31,173.26,6.2079]
[1721953434510,5.7704,173.3,173.22,5.99983888]
[1721953434731,5.7704,173.3,173.23,20.0]
[1721953435796,5.77,173.31,173.23,20.0]
[1721953436002,45.0,173.3,173.23,20.0]
[1721953436617,45.0,173.31,173.23,20.0]
[1721953436812,50.77,173.31,173.23,20.0]
[1721953437421,45.0,173.31,173.23,20.0]
[1721953438924,50.7703,173.31,173.22,5.99983888]
[1721953439224,45.0,173.31,173.23,20.0]
[1721953441421,25.7703,173.3,173.22,5.99983888]
[1721953441932,20.0,173.3,173.21,6.0769]
[1721953442429,5.771,173.28,173.21,6.0769]
[1721953442638,5.7713,173.27,173.21,6.0769]
[1721953442935,5.771,173.28,173.21,6.0769]
[1721953443146,45.0,173.27,173.21,6.0769]
[1721953443510,5.772,173.26,173.21,6.0769]
[1721953443725,25.95,173.26,173.17,6.3032]
[1721953443905,5.7723,173.24,173.17,6.3032]
[1721953444827,50.7727,173.23,173.17,6.3032]
[1721953445924,5.773,173.22,173.17,6.3032]
[1721953446600,70.95,173.23,173.12,6.161]
[1721953446799,5.7736,173.21,173.12,6.161]
[1721953447006,5.7737,173.2,173.12,6.161]
[1721953447221,5.7743,173.18,173.12,6.161]
[1721953447422,25.95,173.2,173.12,6.161]
[1721953447610,5.7746,173.18,173.12,6.161]
[1721953448711,45.0,173.19,173.12,6.161]
[1721953449105,50.774,173.19,173.12,6.161]
[1721953449510,5.7744,173.18,173.12,6.161]
[1721953449812,45.0,173.19,173.12,6.161]
[1721953450137,5.7749,173.17,173.12,6.161]
[1721953450441,5.7747,173.17,173.12,6.161]
[1721953452111,5.98653388,173.23,173.12,6.161]
[1721953452451,5.7727,173.23,173.13,20.0]
[1721953452702,5.7723,173.24,173.13,21.15495449]
[1721953452943,25.95,173.25,173.14,45.0]
[1721953453136,380.5,173.26,173.15,20.0]
[1721953453347,380.5,173.26,173.13,20.0]
[1721953453553,5.773,173.22,173.13,20.0]
[1721953454145,5.7737,173.2,173.13,20.0]
[1721953454325,45.0,173.21,173.13,20.0]
[1721953454648,5.7739,173.2,173.12,6.161]
[1721953454819,25.95,173.22,173.12,7.31601041]
[1721953455220,5.7729,173.23,173.13,20.0]
[1721953455425,5.7729,173.23,173.14,45.0]
[1721953455629,5.7724,173.24,173.14,45.0]
[1721953455838,5.7727,173.23,173.14,45.0]
[1721953456244,5.7727,173.23,173.13,20.0]
[1721953456723,5.773,173.22,173.13,20.0]
[1721953456925,5.7727,173.23,173.13,20.0]
[1721953457333,5.773,173.22,173.13,20.0]
[1721953458255,25.95,173.25,173.13,21.15492403]
[1721953458430,5.7724,173.24,173.14,45.0]
[1721953458632,25.95,173.25,173.14,45.0]
[1721953458825,31.7222,173.25,173.15,20.0]
[1721953459159,25.95,173.28,173.16,22.146]
[1721953459359,25.95,173.28,173.17,20.0]
[1721953459735,5.7715,173.27,173.17,20.0]
[1721953459931,31.721,173.28,173.17,20.0]
[1721953460136,406.45,173.31,173.18,45.0]
[1721953460347,25.95,173.31,173.19,20.0]
[1721953460538,25.95,173.31,173.2,45.0]
[1721953460726,5.771,173.28,173.2,45.0]
[1721953462636,5.7707,173.29,173.2,45.0]
[1721953463208,5.7717,173.26,173.19,20.0]
[1721953463363,25.95,173.28,173.17,20.0]
[1721953464035,5.7719,173.26,173.17,20.0]
[1721953464542,5.7717,173.26,173.17,20.0]
[1721953464935,25.95,173.28,173.17,20.0]
[1721953464936,5.772,173.25,173.17,20.0]
[1721953465356,5.7717,173.26,173.17,20.0]
[1721953465653,5.7714,173.27,173.17,20.0]
[1721953465864,5.7717,173.26,173.17,20.0]
[1721953466156,262.58470037,173.33,173.17,20.0]
[1721953466375,31.7206,173.3,173.18,45.0]
[1721953466666,31.7206,173.3,173.19,20.0]
[1721953466829,31.7206,173.3,173.2,45.0]
[1721953467230,5.7714,173.27,173.19,20.0]
[1721953467447,25.95,173.3,173.17,20.0]
[1721953467652,45.0,173.29,173.17,20.0]
[1721953468139,5.7726,173.24,173.16,22.146]
[1721953468856,5.7727,173.23,173.16,22.146]
[1721953469056,5.7724,173.24,173.16,22.146]
[1721953469247,25.95,173.27,173.16,22.146]
[1721953469432,31.7216,173.27,173.17,45.0]
[1721953469939,5.7721,173.25,173.16,22.146]
[1721953470637,5.7717,173.26,173.16,22.146]
[1721953470828,31.7213,173.27,173.16,22.146]
[1721953471030,25.95,173.3,173.17,66.1546891]
[1721953471249,31.7204,173.3,173.18,1.15450561]
[1721953471459,5.7706,173.29,173.18,1.15450561]
[1721953472663,31.7204,173.3,173.18,1.15450561]
[1721953473152,31.7204,173.3,173.17,66.15440045]
[1721953473702,31.7204,173.3,173.18,1.15443434]
[1721953473868,25.95,173.3,173.17,66.15441062]
[1721953474168,5.7713,173.27,173.17,65.0]
[1721953474475,5.771,173.28,173.17,20.0]
[1721953475790,5.771,173.28,173.18,45.0]
[1721953476073,5.771,173.28,173.19,20.0]
[1721953477165,5.7713,173.27,173.19,20.0]
[1721953477344,5.7711,173.28,173.19,20.0]
[1721953477540,5.7713,173.27,173.19,20.0]
[1721953477771,25.95,173.27,173.19,20.0]
[1721953478057,25.95,173.27,173.17,20.0]
[1721953478359,25.95,173.27,173.16,22.146]
[1721953478360,5.772,173.25,173.16,22.146]
[1721953478550,5.7717,173.26,173.16,22.146]
[1721953478745,25.95,173.27,173.16,22.146]
[1721953478946,5.7722,173.25,173.16,22.146]
[1721953479873,5.7722,173.25,173.17,20.0]
[1721953480240,5.7717,173.26,173.17,20.0]
[1721953480441,31.7214,173.27,173.17,20.0]
[1721953481046,25.95,173.27,173.17,20.0]
[1721953481244,25.95,173.27,173.18,45.0]
[1721953482462,31.7214,173.27,173.18,45.0]
[1721953482844,25.95,173.27,173.18,45.0]
[1721953484066,5.7707,173.29,173.19,20.0]
[1721953484246,25.95,173.3,173.2,1.15452619]
[1721953484448,25.95,173.3,173.21,6.5835]
[1721953484866,25.95,173.3,173.22,20.0]
[1721953485674,31.7203,173.3,173.22,20.0]
[1721953485862,5.7706,173.29,173.22,20.0]
[1721953486067,31.7204,173.3,173.22,20.0]
[1721953489781,25.95,173.3,173.22,20.0]
[1721953490149,12.98,173.27,173.22,20.0]
[1721953490971,12.98,173.24,173.22,20.0]
[1721953491569,5.7707,173.29,173.22,20.0]
[1721953491570,12.98,173.25,173.22,20.0]
[1721953492178,12.98,173.24,173.22,20.0]
[1721953492681,12.98,173.24,173.23,20.0]
[1721953493264,12.98,173.24,173.21,6.5835]
[1721953493265,12.98,173.24,173.22,20.0]
[1721953493676,12.98,173.24,173.21,6.5835]
[1721953496489,12.98,173.23,173.18,12.98]
[1721953496658,12.98,173.23,173.19,20.0]
[1721953497166,12.98,173.23,173.17,19.1534]
[1721953497386,12.98,173.23,173.18,20.0]
[1721953498992,12.98,173.23,173.18,32.98]
[1721953500868,12.98,173.23,173.18,20.0]
[1721953501068,12.98,173.22,173.18,20.0]
[1721953502469,12.98,173.21,173.17,6.1734]
[1721953502675,12.98,173.2,173.17,6.1734]
[1721953502889,12.98,173.2,173.15,12.98]
[1721953504403,12.98,173.21,173.15,12.98]
[1721953504993,12.98,173.2,173.15,12.98]
[1721953505403,12.98,173.2,173.14,12.98]
[1721953506388,12.98,173.2,173.13,6.0146]
[1721953506699,12.98,173.2,173.14,32.98]
[1721953508664,12.98,173.2,173.15,12.98]
[1721953509191,12.98,173.19,173.14,20.0]
[1721953510684,12.98,173.18,173.13,18.9946]
[1721953510878,12.98,173.18,173.13,6.0146]
[1721953511081,12.98,173.18,173.12,12.98]
[1721953511383,12.98,173.17,173.12,12.98]
[1721953511564,12.98,173.16,173.11,12.98]
[1721953511768,12.98,173.15,173.09,6.614]
[1721953512397,12.98,173.15,173.09,19.594]
[1721953513778,12.98,173.14,173.09,19.594]
[1721953515789,12.98,173.14,173.09,12.98]
[1721953515995,15.7588,173.2,173.03,2.26373806]
[1721953515996,12.98,173.13,173.08,12.98]
[1721953516195,12.98,173.13,173.09,20.0]
[1721953516594,12.98,173.13,173.08,12.98]
[1721953517111,12.98,173.13,173.07,12.98]
[1721953517391,5.775,173.17,173.09,12.98]
[1721953517601,12.98,173.15,173.09,12.98]
[1721953518498,12.98,173.13,173.08,12.98]